fUST/lending_fUST_20250727
["ID","MTS","AMOUNT","RATE_DAILY","PERIOD"]
[375172829,1753575045450,-460.0,0.00023673,2]
[375172830,1753575045459,-899.91,0.00023674,2]
[375172831,1753575045470,-1371.08,0.00023674,2]
[375172832,1753575045479,-460.0,0.00023675,2]
[375172833,1753575045490,-154.287826,0.00023676,2]
[375172834,1753575045500,-460.0,0.00023676,2]
[375172835,1753575045510,-460.0,0.00023676,2]
[375172836,1753575045519,-151.0,0.000237,9]
[375172837,1753575045528,-2695.73,0.000238,7]
[375172838,1753575045538,-2681.52726414,0.00023831,10]
[375172839,1753575045548,-154.287826,0.00023922,6]
[375172840,1753575045557,-110.1044286,0.00023944,2]
[375172841,1753575045579,-656.6855714,0.00023944,2]
[375172842,1753575045589,-845.08,0.00023945,2]
[375172843,1753575045600,-615.48285644,0.00023945,2]
[375172844,1753575045612,-171.38714356,0.00023945,2]
[375172845,1753575045622,-548.2,0.00023945,2]
[375172846,1753575045632,-751.98,0.00023946,2]
[375172847,1753575045642,-460.0,0.00023947,2]
[375172848,1753575045652,-899.91,0.00023948,2]
[375172849,1753575045662,-1270.68495307,0.00023948,2]
[375172850,1753575045674,-100.39504693,0.00023948,2]
[375172851,1753575045684,-460.0,0.00023949,2]
[375172852,1753575045694,-460.0,0.0002395,2]
[375172853,1753575045704,-460.0,0.0002395,2]
[375172855,1753575045714,-151.0,0.00024,10]
[375172856,1753575045724,-215.9757969,0.00024,7]
[375172857,1753575045734,-160.0,0.00024,7]
[375172858,1753575045743,-2455.1620031,0.00024038,10]
[375172859,1753575045758,-226.36526104,0.00024038,10]
[375172860,1753575045768,-151.0,0.000241,7]
[375172861,1753575045778,-151.0,0.000241,7]
[375172862,1753575045787,-500.0,0.00024134,2]
[375172863,1753575045799,-154.287826,0.00024158,3]
[375172865,1753575045810,-766.79,0.00024218,2]
[375172867,1753575045819,-190.55691296,0.00024219,2]
[375172869,1753575045832,-654.52308704,0.00024219,2]
[375172871,1753575045842,-586.65028926,0.00024219,2]
[375172873,1753575045853,-200.21971074,0.00024219,2]
[375172875,1753575045865,-177.11196157,0.00024219,2]
[375172877,1753575045877,-371.08803843,0.00024219,2]
[375172879,1753575045888,-751.98,0.0002422,2]
[375172881,1753575045897,-353.78625047,0.00024221,2]
[375172883,1753575045910,-133.65899727,0.00024221,2]
[375172885,1753575045920,-899.91,0.00024222,2]
[375172887,1753575045929,-1371.08,0.00024222,2]
[375172889,1753575045939,-460.0,0.00024223,2]
[375172891,1753575045949,-460.0,0.00024224,2]
[375172893,1753575045958,-580.52318363,0.00024224,2]
[375172894,1753575045968,-171.22213563,0.00024244,2]
[375172896,1753575045978,-2681.52726414,0.00024245,10]
[375172898,1753575045988,-1000.0,0.00024296,2]
[375172900,1753575045998,-23414.23,0.000243,2]
[375172901,1753575046007,-154.287826,0.00024344,6]
[375172902,1753575046017,-500.0,0.00024403,2]
[375172903,1753575046027,-2681.52726414,0.00024452,11]
[375172904,1753575046036,-766.79,0.00024492,2]
[375172905,1753575046046,-845.08,0.00024493,2]
[375172906,1753575046056,-786.87,0.00024493,2]
[375172907,1753575046065,-548.2,0.00024493,2]
[375172908,1753575046075,-751.98,0.00024494,2]
[375172909,1753575046088,-146.42497219,0.00024496,2]
[375172910,1753575046100,-753.48502781,0.00024496,2]
[375172911,1753575046110,-1371.08,0.00024496,2]
[375172912,1753575046119,-460.0,0.00024497,2]
[375172914,1753575046129,-69.47078203,0.00024498,2]
[375172936,1753575046345,-460.0,0.0001956,2]
[375172939,1753575046356,-2055.52,0.00022849,2]
[375172941,1753575046366,-2055.52,0.00023123,2]
[375172942,1753575046376,-390.52921797,0.00024498,2]
[375172945,1753575046387,-151.0,0.000245,10]
[375172946,1753575046396,-151.0,0.000245,9]
[375172948,1753575046406,-151.0,0.000245,7]
[375172950,1753575046416,-154.287826,0.00024513,2]
[375172952,1753575046425,-500.0,0.00024596,2]
[375172954,1753575046435,-971.66,0.000246,7]
[375172956,1753575046445,-2517.36,0.000246,7]
[375172958,1753575046454,-500.0,0.00024658,2]
[375172960,1753575046464,-2681.52726414,0.00024659,11]
[375172962,1753575046475,-154.287826,0.00024707,3]
[375172964,1753575046485,-154.287826,0.00024765,6]
[375172966,1753575046495,-766.79,0.00024766,2]
[375172968,1753575046505,-845.08,0.00024767,2]
[375172970,1753575046514,-786.87,0.00024767,2]
[375172980,1753575046607,-548.2,0.00024767,2]
[375172982,1753575046618,-751.98,0.00024768,2]
[375172984,1753575046627,-899.91,0.0002477,2]
[375172986,1753575046637,-1371.08,0.0002477,2]
[375172988,1753575046647,-460.0,0.00024771,2]
[375172990,1753575046656,-460.0,0.00024772,2]
[375172992,1753575046666,-2681.52726414,0.00024866,12]
[375172994,1753575046676,-500.0,0.00024873,2]
[375172996,1753575046686,-150.0,0.00024873,2]
[375172998,1753575046696,-231.76193867,0.00024873,2]
[375173000,1753575046707,-54499.96248756,0.000249,2]
[375173002,1753575046719,-380.36253887,0.000249,2]
[375173010,1753575046801,-460.0,0.00019559,2]
[375173012,1753575046811,-95.59550936,0.00023397,2]
[375173042,1753575047559,-1651.68,0.0002109,10]
[375173043,1753575047569,-1408.39751917,0.00023397,2]
[375173044,1753575077171,25859.57445373,0.00019462,2]
[375173045,1753575077195,14140.42554627,0.00019462,2]
[375173046,1753575080275,5000.0,0.0001951,2]
[375173047,1753575180222,171.13248209,0.00019459,2]
[375173048,1753575202246,203.62780353,0.00018972,2]
[375173049,1753575243147,10484.81416811,0.00019462,2]
[375173050,1753575243172,30000.0,0.00019462,2]
[375173051,1753575243195,30000.0,0.00019462,2]
[375173052,1753575243220,30000.0,0.00019462,2]
[375173053,1753575243243,30000.0,0.00019462,2]
[375173054,1753575243267,30000.0,0.00019462,2]
[375173058,1753575769071,159.852839,0.00013699,2]
[375173059,1753575831346,24900.0,0.00018461,2]
[375173060,1753575840827,5000.0,0.0001901,2]
[375173065,1753576031140,-173.48343549,0.0001936,2]
[375173066,1753576031163,-782.73,0.00019452,3]
[375173067,1753576031185,-98.49982903,0.00019457,2]
[375173073,1753576147890,185.890027,0.00018458,2]
[375173074,1753576168283,302.06800457,0.00019,2]
[375173140,1753576238148,-173.48343546,0.00019358,2]
[375173141,1753576238158,-587.03,0.00019451,3]
[375173142,1753576238167,-300.0,0.00019456,2]
[375173143,1753576238177,-222.0,0.00019456,2]
[375173144,1753576238187,-300.0,0.00019456,2]
[375173145,1753576238197,-246.0,0.00019456,2]
[375173147,1753576238207,-211.13999792,0.00019457,2]
[375173149,1753576238217,-500.0,0.00019457,2]
[375173150,1753576238226,-500.0,0.00019457,2]
[375173151,1753576238236,-500.0,0.00019457,2]
[375173152,1753576238245,-500.0,0.00019457,2]
[375173153,1753576238255,-301.69586187,0.00019457,2]
[375173154,1753576238265,-500.0,0.00019457,2]
[375173155,1753576238275,-500.0,0.00019457,2]
[375173156,1753576238285,-500.0,0.00019457,2]
[375173157,1753576238294,-401.74491578,0.00019457,2]
[375173158,1753576238304,-500.0,0.00019457,2]
[375173159,1753576238313,-500.0,0.00019457,2]
[375173160,1753576238323,-500.0,0.00019457,2]
[375173161,1753576238333,-500.0,0.00019457,2]
[375173162,1753576238342,-500.0,0.00019457,2]
[375173163,1753576238351,-500.0,0.00019457,2]
[375173164,1753576238360,-500.0,0.00019457,2]
[375173165,1753576238370,-500.0,0.00019457,2]
[375173166,1753576238379,-500.0,0.00019457,2]
[375173167,1753576238388,-500.0,0.00019457,2]
[375173168,1753576238398,-500.0,0.00019457,2]
[375173169,1753576238407,-500.0,0.00019457,2]
[375173170,1753576238416,-500.0,0.00019457,2]
[375173171,1753576238426,-500.0,0.00019457,2]
[375173172,1753576238436,-500.0,0.00019457,2]
[375173173,1753576238445,-197.13806151,0.00019457,2]
[375173174,1753576238455,-500.0,0.00019457,2]
[375173175,1753576238464,-500.0,0.00019457,2]
[375173176,1753576238477,-500.0,0.00019457,2]
[375173177,1753576238487,-500.0,0.00019457,2]
[375173178,1753576238497,-50000.0,0.00019458,2]
[375173179,1753576238506,-713.18394001,0.00019458,2]
[375173180,1753576238516,-1200.0,0.00019458,2]
[375173181,1753576238526,-460.0,0.00019458,2]
[375173182,1753576238536,-460.0,0.00019458,2]
[375173183,1753576238545,-460.0,0.00019458,2]
[375173184,1753576238554,-460.0,0.00019458,2]
[375173185,1753576238564,-460.0,0.00019458,2]
[375173186,1753576238573,-460.0,0.00019458,2]
[375173187,1753576238583,-460.0,0.00019458,2]
[375173188,1753576238593,-460.0,0.00019458,2]
[375173189,1753576238602,-460.0,0.00019458,2]
[375173190,1753576238611,-691.92,0.00019458,2]
[375173191,1753576238624,-500.0,0.00019459,2]
[375173192,1753576238633,-460.0,0.00019459,2]
[375173193,1753576238643,-460.0,0.00019459,2]
[375173194,1753576238652,-460.0,0.00019459,2]
[375173195,1753576238662,-188.34103353,0.00019459,2]
[375173196,1753576238672,-460.0,0.00019459,2]
[375173197,1753576238681,-466.20701381,0.00019459,2]
[375173198,1753576238691,-460.0,0.00019459,2]
[375173199,1753576238700,-460.0,0.00019459,2]
[375173200,1753576238710,-460.0,0.00019459,2]
[375173201,1753576238720,-1000.0,0.00019459,2]
[375173202,1753576238729,-460.0,0.00019459,2]
[375173203,1753576238739,-460.0,0.00019459,2]
[375173204,1753576238748,-460.0,0.00019459,2]
[375173205,1753576238757,-378.06606047,0.00019459,2]
[375173206,1753576238766,-460.0,0.00019459,2]
[375173207,1753576238776,-460.0,0.00019459,2]
[375173208,1753576238787,-460.0,0.00019459,2]
[375173209,1753576238796,-372.00289012,0.00019459,2]
[375173210,1753576238806,-460.0,0.00019459,2]
[375173211,1753576238815,-753.84,0.00019459,2]
[375173212,1753576238824,-460.0,0.00019459,2]
[375173213,1753576238834,-460.0,0.00019459,2]
[375173214,1753576238843,-460.0,0.00019459,2]
[375173215,1753576238853,-460.0,0.00019459,2]
[375173216,1753576238863,-707.6,0.00019459,2]
[375173217,1753576238872,-460.0,0.00019459,2]
[375173218,1753576238882,-460.0,0.00019459,2]
[375173219,1753576238892,-460.0,0.00019459,2]
[375173220,1753576238901,-460.0,0.00019459,2]
[375173221,1753576238911,-541.67,0.00019459,2]
[375173222,1753576238921,-460.0,0.00019459,2]
[375173223,1753576238931,-460.0,0.00019459,2]
[375173224,1753576238942,-460.0,0.00019459,2]
[375173225,1753576238952,-460.0,0.00019459,2]
[375173226,1753576238962,-460.0,0.00019459,2]
[375173227,1753576238973,-460.0,0.00019459,2]
[375173228,1753576238984,-460.0,0.00019459,2]
[375173229,1753576238994,-460.0,0.00019459,2]
[375173230,1753576239003,-460.0,0.00019459,2]
[375173231,1753576239013,-460.0,0.00019459,2]
[375173232,1753576239023,-2048.19,0.00019459,2]
[375173233,1753576239032,-274.97222338,0.00019459,2]
[375173234,1753576239042,-500.0,0.00019459,2]
[375173235,1753576239052,-500.0,0.00019459,2]
[375173236,1753576239063,-500.0,0.00019459,2]
[375173237,1753576239073,-500.0,0.00019459,2]
[375173238,1753576239085,-500.0,0.00019459,2]
[375173239,1753576239094,-500.0,0.00019459,2]
[375173240,1753576239104,-460.0,0.0001946,2]
[375173241,1753576239113,-500.0,0.0001946,2]
[375173242,1753576239123,-500.0,0.0001946,2]
[375173243,1753576239131,-500.0,0.0001946,2]
[375173244,1753576239141,-460.0,0.0001946,2]
[375173245,1753576239150,-460.0,0.0001946,2]
[375173246,1753576239159,-460.0,0.0001946,2]
[375173247,1753576239168,-460.0,0.0001946,2]
[375173248,1753576239179,-460.0,0.0001946,2]
[375173249,1753576239189,-461.66446139,0.0001946,2]
[375173250,1753576239198,-460.0,0.0001946,2]
[375173251,1753576239207,-460.0,0.0001946,2]
[375173252,1753576239216,-460.0,0.0001946,2]
[375173253,1753576239225,-463.1547138,0.0001946,2]
[375173254,1753576239234,-460.0,0.0001946,2]
[375173255,1753576239244,-460.0,0.0001946,2]
[375173256,1753576239256,-460.0,0.0001946,2]
[375173257,1753576239265,-460.0,0.0001946,2]
[375173258,1753576239275,-460.0,0.0001946,2]
[375173259,1753576239284,-460.0,0.0001946,2]
[375173260,1753576239293,-460.0,0.0001946,2]
[375173261,1753576239302,-460.0,0.0001946,2]
[375173262,1753576239311,-460.0,0.0001946,2]
[375173263,1753576239321,-460.0,0.0001946,2]
[375173264,1753576239331,-460.0,0.0001946,2]
[375173265,1753576239340,-460.0,0.0001946,2]
[375173266,1753576239350,-460.0,0.0001946,2]
[375173267,1753576239359,-460.0,0.0001946,2]
[375173268,1753576239369,-460.0,0.0001946,2]
[375173269,1753576239378,-460.0,0.0001946,2]
[375173270,1753576239388,-460.0,0.0001946,2]
[375173271,1753576239397,-460.0,0.0001946,2]
[375173272,1753576239406,-541.85,0.0001946,2]
[375173273,1753576239415,-460.0,0.0001946,2]
[375173274,1753576239424,-460.0,0.0001946,2]
[375173275,1753576239434,-460.0,0.0001946,2]
[375173276,1753576239443,-460.0,0.0001946,2]
[375173277,1753576239452,-460.0,0.0001946,2]
[375173278,1753576239463,-460.0,0.0001946,2]
[375173279,1753576239477,-568.26,0.0001946,2]
[375173280,1753576239487,-460.0,0.0001946,2]
[375173281,1753576239497,-500.0,0.0001946,2]
[375173282,1753576239507,-238.77431108,0.0001946,2]
[375173283,1753576239516,-460.0,0.0001946,2]
[375173284,1753576239526,-460.0,0.0001946,2]
[375173285,1753576239537,-460.0,0.0001946,2]
[375173286,1753576239546,-502.57,0.0001946,2]
[375173287,1753576239557,-460.0,0.0001946,2]
[375173288,1753576239570,-460.0,0.0001946,2]
[375173289,1753576239581,-579.20765751,0.0001946,2]
[375173290,1753576239590,-460.0,0.0001946,2]
[375173291,1753576239600,-460.0,0.0001946,2]
[375173292,1753576239611,-460.0,0.0001946,2]
[375173293,1753576239620,-460.0,0.0001946,2]
[375173294,1753576239630,-460.0,0.0001946,2]
[375173295,1753576239639,-460.0,0.0001946,2]
[375173296,1753576239649,-460.0,0.0001946,2]
[375173297,1753576239658,-460.0,0.0001946,2]
[375173298,1753576239668,-460.0,0.0001946,2]
[375173299,1753576239678,-460.0,0.0001946,2]
[375173300,1753576239688,-460.0,0.0001946,2]
[375173301,1753576239698,-460.0,0.0001946,2]
[375173302,1753576239708,-460.0,0.0001946,2]
[375173303,1753576239718,-460.0,0.0001946,2]
[375173304,1753576239728,-460.0,0.0001946,2]
[375173305,1753576239738,-460.0,0.0001946,2]
[375173306,1753576239748,-460.0,0.0001946,2]
[375173307,1753576239758,-460.0,0.0001946,2]
[375173308,1753576239767,-466.29107803,0.0001946,2]
[375173309,1753576239777,-466.13,0.0001946,2]
[375173310,1753576239787,-460.0,0.0001946,2]
[375173311,1753576239797,-460.0,0.0001946,2]
[375173312,1753576239807,-460.0,0.0001946,2]
[375173313,1753576239816,-460.0,0.0001946,2]
[375173314,1753576239825,-460.0,0.0001946,2]
[375173315,1753576239836,-257.20965285,0.0001946,2]
[375173316,1753576239846,-460.0,0.0001946,2]
[375173317,1753576239856,-460.0,0.0001946,2]
[375173318,1753576239866,-460.0,0.0001946,2]
[375173319,1753576239877,-460.0,0.0001946,2]
[375173320,1753576239888,-460.0,0.0001946,2]
[375173321,1753576239899,-460.0,0.0001946,2]
[375173322,1753576239908,-460.0,0.0001946,2]
[375173323,1753576239918,-460.0,0.0001946,2]
[375173324,1753576239927,-460.0,0.0001946,2]
[375173325,1753576239937,-462.14455293,0.0001946,2]
[375173326,1753576239947,-460.0,0.0001946,2]
[375173327,1753576239958,-478.27776425,0.0001946,2]
[375173328,1753576239968,-460.0,0.0001946,2]
[375173329,1753576239978,-460.0,0.0001946,2]
[375173330,1753576239988,-460.0,0.0001946,2]
[375173331,1753576239998,-460.0,0.0001946,2]
[375173332,1753576240008,-460.0,0.0001946,2]
[375173333,1753576240018,-460.0,0.0001946,2]
[375173334,1753576240027,-460.0,0.0001946,2]
[375173335,1753576240036,-460.0,0.0001946,2]
[375173336,1753576240046,-460.0,0.0001946,2]
[375173337,1753576240056,-460.0,0.0001946,2]
[375173338,1753576240065,-460.0,0.00019461,2]
[375173339,1753576240075,-460.0,0.00019461,2]
[375173340,1753576240085,-460.0,0.00019461,2]
[375173341,1753576240192,-554.99,0.00019461,2]
[375173342,1753576240204,-460.0,0.00019461,2]
[375173343,1753576240215,-460.0,0.00019461,2]
[375173344,1753576240226,-460.0,0.00019461,2]
[375173345,1753576240237,-460.0,0.00019461,2]
[375173346,1753576240247,-460.0,0.00019461,2]
[375173347,1753576240258,-460.0,0.00019461,2]
[375173348,1753576240268,-460.0,0.00019461,2]
[375173349,1753576240278,-312.81081687,0.00019461,2]
[375173350,1753576240288,-460.0,0.00019461,2]
[375173351,1753576240298,-451.35645911,0.00019461,2]
[375173352,1753576240307,-460.0,0.00019461,2]
[375173353,1753576240317,-460.0,0.00019461,2]
[375173354,1753576240326,-460.0,0.00019461,2]
[375173355,1753576240335,-1015.50208925,0.00019461,2]
[375173356,1753576240344,-170.87422077,0.00019461,2]
[375173357,1753576240354,-585.94249717,0.00019461,2]
[375173358,1753576240363,-455.0435308,0.00019461,2]
[375173359,1753576240373,-460.0,0.00019461,2]
[375173360,1753576240382,-460.0,0.00019461,2]
[375173361,1753576240392,-460.0,0.00019461,2]
[375173362,1753576240402,-460.0,0.00019461,2]
[375173363,1753576240411,-460.0,0.00019461,2]
[375173364,1753576240421,-460.0,0.00019461,2]
[375173365,1753576240430,-460.0,0.00019461,2]
[375173366,1753576240440,-460.0,0.00019461,2]
[375173367,1753576240448,-460.0,0.00019461,2]
[375173368,1753576240457,-460.0,0.00019461,2]
[375173369,1753576240470,-500.0,0.00019461,2]
[375173370,1753576240484,-460.0,0.00019461,2]
[375173371,1753576240494,-460.0,0.00019461,2]
[375173372,1753576240505,-460.0,0.00019461,2]
[375173373,1753576240518,-460.0,0.00019461,2]
[375173374,1753576240528,-460.0,0.00019461,2]
[375173375,1753576240538,-460.0,0.00019461,2]
[375173376,1753576240549,-460.0,0.00019461,2]
[375173377,1753576240559,-460.0,0.00019461,2]
[375173378,1753576240568,-460.0,0.00019461,2]
[375173379,1753576240577,-460.0,0.00019461,2]
[375173380,1753576240587,-460.0,0.00019461,2]
[375173381,1753576240597,-460.0,0.00019461,2]
[375173382,1753576240607,-461.45609941,0.00019461,2]
[375173383,1753576240616,-460.0,0.00019461,2]
[375173384,1753576240626,-460.0,0.00019461,2]
[375173385,1753576240636,-460.0,0.00019461,2]
[375173386,1753576240646,-460.0,0.00019461,2]
[375173387,1753576240655,-460.0,0.00019461,2]
[375173388,1753576240665,-460.0,0.00019461,2]
[375173389,1753576240674,-446.26204571,0.00019461,2]
[375173390,1753576240684,-460.0,0.00019461,2]
[375173391,1753576240694,-460.0,0.00019461,2]
[375173392,1753576240703,-460.0,0.00019461,2]
[375173393,1753576240713,-327.35339739,0.00019461,2]
[375173394,1753576240723,-460.0,0.00019461,2]
[375173395,1753576240732,-460.0,0.00019461,2]
[375173396,1753576240741,-460.0,0.00019461,2]
[375173397,1753576240751,-460.0,0.00019461,2]
[375173398,1753576240760,-460.0,0.00019461,2]
[375173399,1753576240770,-508.0597304,0.00019461,2]
[375173400,1753576240779,-460.0,0.00019461,2]
[375173401,1753576240788,-460.0,0.00019461,2]
[375173402,1753576240798,-460.0,0.00019461,2]
[375173403,1753576240808,-460.0,0.00019461,2]
[375173404,1753576240818,-460.0,0.00019461,2]
[375173405,1753576240827,-370.41306049,0.00019461,2]
[375173406,1753576240836,-460.0,0.00019461,2]
[375173407,1753576240846,-460.0,0.00019461,2]
[375173408,1753576240856,-663.19,0.00019461,2]
[375173409,1753576240865,-460.0,0.00019461,2]
[375173410,1753576240875,-593.44862131,0.00019461,2]
[375173411,1753576240884,-460.0,0.00019461,2]
[375173412,1753576240893,-460.0,0.00019461,2]
[375173413,1753576240903,-460.0,0.00019461,2]
[375173414,1753576240912,-460.0,0.00019461,2]
[375173415,1753576240922,-460.0,0.00019461,2]
[375173416,1753576240931,-461.61365901,0.00019461,2]
[375173417,1753576240941,-386.69791952,0.00019461,2]
[375173418,1753576240950,-500.0,0.00019461,2]
[375173419,1753576240960,-460.0,0.00019461,2]
[375173420,1753576240970,-460.0,0.00019461,2]
[375173421,1753576240979,-556.55,0.00019461,2]
[375173422,1753576240988,-460.0,0.00019461,2]
[375173423,1753576240997,-265.21573273,0.00019461,2]
[375173424,1753576241007,-460.0,0.00019461,2]
[375173425,1753576241016,-460.0,0.00019461,2]
[375173426,1753576241026,-196.70955208,0.00019461,2]
[375173427,1753576241035,-460.0,0.00019461,2]
[375173428,1753576241044,-460.0,0.00019461,2]
[375173429,1753576241054,-460.0,0.00019461,2]
[375173430,1753576241063,-460.0,0.00019461,2]
[375173431,1753576241074,-851.51,0.00019461,2]
[375173432,1753576241084,-460.0,0.00019461,2]
[375173433,1753576241095,-460.0,0.00019461,2]
[375173434,1753576241104,-460.0,0.00019461,2]
[375173435,1753576241113,-460.0,0.00019461,2]
[375173436,1753576241123,-460.0,0.00019461,2]
[375173437,1753576241132,-509.35,0.00019461,2]
[375173438,1753576241141,-460.0,0.00019461,2]
[375173439,1753576241151,-466.88458515,0.00019461,2]
[375173440,1753576241160,-460.0,0.00019461,2]
[375173441,1753576241169,-460.0,0.00019461,2]
[375173442,1753576241179,-460.0,0.00019461,2]
[375173443,1753576241188,-460.0,0.00019461,2]
[375173444,1753576241198,-22229.38532998,0.00019462,2]
[375173445,1753576241207,-332.33,0.00019549,3]
[375173446,1753576241218,-166.16,0.00019549,3]
[375173447,1753576241227,-498.51,0.00019549,3]
[375173448,1753576241237,-160.0,0.00019558,2]
[375173449,1753576241246,-460.0,0.00019558,2]
[375173450,1753576241255,-460.0,0.00019558,2]
[375173451,1753576241265,-460.0,0.00019558,2]
[375173452,1753576241274,-460.0,0.00019558,2]
[375173453,1753576241284,-460.0,0.00019558,2]
[375173454,1753576241293,-460.0,0.00019558,2]
[375173455,1753576241303,-500.0,0.00019558,2]
[375173456,1753576241312,-460.0,0.00019559,2]
[375173457,1753576241321,-460.0,0.00019559,2]
[375173458,1753576241331,-460.0,0.00019559,2]
[375173459,1753576241341,-460.0,0.00019559,2]
[375173460,1753576241350,-478.79,0.00019559,2]
[375173461,1753576241360,-172.51469802,0.00019559,2]
[375173462,1753576241369,-341.40142005,0.00019559,2]
[375173463,1753576241378,-460.0,0.00019559,2]
[375173464,1753576241388,-513.29131247,0.00019559,2]
[375173465,1753576241397,-460.0,0.00019559,2]
[375173466,1753576241407,-460.0,0.00019559,2]
[375173467,1753576241416,-289.184877,0.00019559,2]
[375173468,1753576241425,-460.0,0.00019559,2]
[375173469,1753576241434,-460.0,0.00019559,2]
[375173470,1753576241444,-460.0,0.00019559,2]
[375173471,1753576241453,-460.0,0.00019559,2]
[375173472,1753576241463,-463.69381983,0.00019559,2]
[375173473,1753576241476,-460.0,0.00019559,2]
[375173474,1753576241485,-460.0,0.00019559,2]
[375173475,1753576241495,-460.0,0.00019559,2]
[375173476,1753576241505,-460.0,0.00019559,2]
[375173477,1753576241515,-460.0,0.00019559,2]
[375173478,1753576241524,-460.0,0.00019559,2]
[375173479,1753576241534,-460.0,0.00019559,2]
[375173480,1753576241544,-442.66777126,0.00019559,2]
[375173481,1753576241553,-460.0,0.00019559,2]
[375173482,1753576241563,-460.0,0.00019559,2]
[375173483,1753576241572,-460.0,0.00019559,2]
[375173484,1753576241582,-605.29,0.00019559,2]
[375173485,1753576241591,-460.0,0.00019559,2]
[375173486,1753576241601,-460.0,0.00019559,2]
[375173487,1753576241610,-460.0,0.00019559,2]
[375173488,1753576241620,-460.0,0.00019559,2]
[375173489,1753576241629,-460.0,0.00019559,2]
[375173490,1753576241638,-460.0,0.00019559,2]
[375173491,1753576241648,-460.0,0.00019559,2]
[375173492,1753576241657,-460.0,0.00019559,2]
[375173493,1753576241667,-460.0,0.00019559,2]
[375173494,1753576241676,-460.0,0.00019559,2]
[375173495,1753576241686,-460.0,0.00019559,2]
[375173496,1753576241695,-558.02,0.00019559,2]
[375173497,1753576241705,-460.0,0.00019559,2]
[375173498,1753576241716,-460.0,0.00019559,2]
[375173499,1753576241726,-460.0,0.00019559,2]
[375173500,1753576241736,-460.0,0.00019559,2]
[375173501,1753576241746,-460.0,0.00019559,2]
[375173502,1753576241755,-461.32,0.00019559,2]
[375173503,1753576241765,-460.0,0.00019559,2]
[375173504,1753576241774,-460.0,0.00019559,2]
[375173505,1753576241784,-460.0,0.00019559,2]
[375173506,1753576241793,-460.0,0.00019559,2]
[375173507,1753576241803,-460.0,0.00019559,2]
[375173508,1753576241813,-460.0,0.00019559,2]
[375173509,1753576241826,-460.0,0.00019559,2]
[375173510,1753576241835,-460.0,0.00019559,2]
[375173511,1753576241844,-609.01,0.00019559,2]
[375173512,1753576241854,-460.0,0.00019559,2]
[375173513,1753576241863,-460.0,0.00019559,2]
[375173514,1753576241873,-460.0,0.00019559,2]
[375173515,1753576241883,-460.0,0.00019559,2]
[375173516,1753576241892,-460.0,0.00019559,2]
[375173517,1753576241902,-500.0,0.00019559,2]
[375173518,1753576241912,-500.0,0.00019559,2]
[375173519,1753576241921,-460.0,0.00019559,2]
[375173520,1753576241931,-460.0,0.00019559,2]
[375173521,1753576241940,-460.0,0.00019559,2]
[375173522,1753576241950,-559.4143089,0.00019559,2]